Cogmind - Beta 17.1 @@@ ROGUE MODE // 2026.09.11 @ 10:43:54 Player: Tereza Result: Destroyed by D-53 Grenadier with Mini Grenade Launcher Performance ------------- Evolutions (0) 0 Regions Visited (2) 400 Robots Destroyed (33) 165 Value Destroyed (620) 620 Prototype IDs (2) 40 Alien Tech Used (0) 0 Bonus (0) 0 TOTAL SCORE: 1225 Bonus ------- None Cogmind --------- Core Integrity 0/250 Matter 183/300 Energy 227/250 System Corruption 1% Temperature Cool (0) Movement Treading (160) Location -10/Mines Parts ------- > --- POWER (1) -------- Ion Engine > --- PROPULSION (2) --- Light Treads Light Treads > --- UTILITY (2) ------ Large Storage Unit Seismic Detector > --- WEAPON (2) ------- Beam Rifle Particle Gun > --- INVENTORY (15) --- Huge Storage Unit Large Matter Pod (150) Seismic Detector Hacking Suite Beam Rifle Beam Rifle Light Assault Rifle Rocket Launcher Datajack Plasma Cutter Proton Bomb Trap Peak State ------------ > --- POWER ------------ Ion Engine > --- PROPULSION ------- Light Treads Light Treads > --- UTILITY ---------- Large Storage Unit Seismic Detector > --- WEAPON ----------- Beam Rifle Particle Gun > --- INVENTORY -------- Huge Storage Unit Large Matter Pod Seismic Detector Hacking Suite Beam Rifle Beam Rifle Light Assault Rifle Rocket Launcher Datajack Plasma Cutter Proton Bomb Trap Proton Bomb Trap Proton Bomb Trap Proton Bomb Trap [Rating: 11] Favorites ----------- Power Ion Engine Engine Ion Engine Propulsion Light Treads Treads Light Treads Utility Seismic Detector Device Seismic Detector Storage Large Storage Unit Weapon Assault Rifle Energy Gun Particle Gun Ballistic Gun Assault Rifle Launcher Grenade Launcher Build | -11 -10 -10 ------- Run | Yrd Mat Min Slots Evolved . | . . . Power . | . . . Propulsion . | . . . Utility . | . . . Weapon . | . . . Parts Attached 19 | 7 4 8 Power 2 | 1 . 1 Engine 2 | 1 . 1 Core . | . . . Reactor . | . . . Propulsion 4 | 2 . 2 Treads 4 | 2 . 2 Leg . | . . . Wheel . | . . . Hover . | . . . Flight . | . . . Utility 6 | 2 3 1 Device 3 | 1 1 1 Storage 3 | 1 2 . Processor . | . . . Hackware . | . . . Protection . | . . . Artifact . | . . . Weapon 7 | 2 1 4 Energy Gun 2 | . . 2 Energy Cannon . | . . . Ballistic Gun 4 | 2 1 1 Ballistic Cannon . | . . . Launcher 1 | . . 1 Special Weapon . | . . . Impact Weapon . | . . . Slashing Weapon . | . . . Piercing Weapon . | . . . Special Melee Weapon . | . . . Unidentified Prototypes . | . . . Parts Lost 7 | . 1 6 Power 1 | . 1 . Propulsion 2 | . . 2 Utility 1 | . . 1 Weapon 3 | . . 3 Highest Loss Streak 6 | . 1 6 To Critical Strikes . | . . . Average Backups 10 | 3 12 10 Power . | . 1 . Propulsion 1 | 1 2 . Utility 3 | . 4 3 Weapon 3 | . 3 3 Tool/Special . | . . . Unused Backups 14 | . 5 9 Power . | . . . Propulsion 2 | . 2 . Utility 5 | . 1 4 Weapon 5 | . 2 3 Tool/Special 2 | . . 2 Average Slot Usage (%) 96 | . 97 93 Engine 11 | . 11 10 Treads 27 | . 27 28 Device 13 | . 14 11 Storage 14 | . 14 14 Energy Gun 5 | . . 22 Ballistic Gun 22 | . 27 4 Peak Build Rating 11 | 7 9 11 Average Rating 8 | 5 7 9 On Entrance 5 | . 7 8 Avg Prop Armor Cover (%) . | . . . Naked Turns . | . . . Heaviest Build 32 | 15 30 32 Greatest Support 40 | 40 40 40 Greatest Overweight (x) 1 | . . 1 Average Overweight (x) . | . . . Largest Inventory Capacity 15 | 8 15 15 Average Capacity 13 | 7 13 15 Most Carried 15 | 5 15 15 Average Carried 11 | 3 12 10 Final Capacity 15 | 8 15 15 Final Carried 15 | 5 15 11 Class Distribution -------------------- 100% | Mutant Dominant Class ---------------- Mutant | -10/Materials Mutant | -10/Mines Resources | -11 -10 -10 ----------- Run | Yrd Mat Min Matter Collected 978 | 359 562 57 Remotely . | . . . Salvage Created 920 | 201 613 106 Parts 65 | 20 40 5 Haulers Intercepted 2 | . 2 . Recyclers Shooed 4 | 1 3 . Parts Field Recycled . | . . . Retrieved Matter . | . . . Parts Self-Destructed . | . . . Prevented . | . . . Parts Restored . | . . . Kills | -11 -10 -10 ------- Run | Yrd Mat Min Combat Hostiles Destroyed 22 | . 13 9 Guns 19 | . 13 6 AOE 3 | . . 3 Classes Destroyed 9 | 2 6 1 Worker 1 | . 1 . Tunneler 7 | 7 . . Hauler 2 | . 2 . Recycler 1 | 1 . . Operator 2 | . 2 . Watcher 2 | . 2 . Swarmer 7 | . 4 3 Grunt 11 | . 9 2 Assembled 4 | . . 4 Best Kill Streak 8 | 5 3 8 Combat Bots Only 8 | . 3 8 Max Kills in Single Turn 2 | 1 2 2 Gunslinging . | . . . Exploded 2 | . . 2 Melee . | . . . Uniques/NPCs Destroyed . | . . . Combat | -11 -10 -10 -------- Run | Yrd Mat Min Hostile Shots Fired 133 | . 58 75 Missed 27 | . 11 16 Hits 106 | . 47 59 Melee 4 | . . 4 Projectile 102 | . 47 55 AOE 4 | . . 4 Critical Strikes 1 | . . 1 Damage Taken 1325 | . 533 792 Core 287 | . 90 197 Absorbed by Shields . | . . . Regen/Repaired (Parts) 159 | . 159 . Core Remaining (%) 100 | 100 . . Volleys Fired 108 | 15 68 25 Largest 2 | 2 2 2 Hottest 121 | 40 40 121 Shots Fired 209 | 30 137 42 Gun 204 | 30 137 37 Cannon . | . . . Launcher 5 | . . 5 Special . | . . . Kinetic 189 | 30 137 22 Thermal 15 | . . 15 Explosive 5 | . . 5 Electromagnetic . | . . . Robot Hit Streak 10 | 6 10 6 Robot Miss Streak 5 | 1 5 3 Penetration Max . | . . . Secondary Targets 3 | . 3 . Max Gunslinging Chain 1 | . 1 . Shots Hit Robots 135 | 21 88 26 Core Hits 67 | 9 40 18 Critical Kills . | . . . Critical Parts Destroyed 1 | 1 . . Critical Strikes 1 | 1 . . Destroy 1 | 1 . . Melee Attacks . | . . . Impact . | . . . Slashing . | . . . Piercing . | . . . Sneak Attacks . | . . . Combat Hostiles . | . . . Follow-up Attacks . | . . . Damage Inflicted 1943 | 260 1136 547 Guns 1647 | 260 1115 272 Cannons . | . . . Explosions 264 | . . 264 Melee . | . . . Ramming 32 | . 21 11 Kinetic 1493 | 260 1115 118 Thermal 154 | . . 154 Explosive 264 | . . 264 Electromagnetic . | . . . Impact . | . . . Slashing . | . . . Piercing . | . . . Highest Corruption 1 | . 1 1 Average Corruption 1 | . 1 1 Corruption Purged . | . . . Corruption Blocked . | . . . Effects 8 | . 6 2 Message Errors 1 | . 1 . Matter Fused 1 | . . 1 Heat Flow Errors 1 | . 1 . Energy Discharges 3 | . 2 1 Misfires 1 | . 1 . Alerts 1 | . 1 . Overload Shots . | . . . Overflow Damage 24 | . . 24 Projectiles . | . . . Explosions 24 | . . 24 Melee . | . . . Knockbacks . | . . . Impact . | . . . Kinetic . | . . . Secondary . | . . . Self-Inflicted Damage 14 | . . 14 Shots 1 | . . 1 Rammed 4 | . 3 1 Targets Rammed 5 | . 4 1 Kicked . | . . . Crushed 1 | . 1 . Highest Temperature 175 | . 175 112 Average Temperature 40 | . 34 44 Received Heat Transfer 291 | . 198 93 Siege Activations . | . . . Martial Activations . | . . . Shielding Activations . | . . . Robots Disrupted . | . . . Combat Hostiles . | . . . Robots Corrupted . | . . . Combat Hostiles . | . . . Parts Fried . | . . . Impact Corruptions . | . . . Robots Melted . | . . . Combat Hostiles . | . . . Parts Melted . | . . . Heat Transferred 370 | . . 370 Parts Sabotaged . | . . . Parts Stolen . | . . . Parts Stripped . | . . . Power Chain Reactions . | . . . Alert | -11 -10 -10 ------- Run | Yrd Mat Min Maximum Alert Level . | . . . Low Security (%) 100 | 100 100 100 Level 1 . | . . . Level 2 . | . . . Level 3 . | . . . Level 4 . | . . . Level 5 . | . . . High Security . | . . . Max Security . | . . . Peak Influence 123 | 10 72 123 Initial 6 | . 6 . Average 20 | 2 23 17 Influence Increases 655 | 40 406 209 Destroy 0b10 Robot/C 360 | . 260 100 Destroy 0b10 Robot/NC 75 | 40 35 . Destroy Leader 88 | . 68 20 Trap Triggered on 0b10 20 | . . 20 Successful Hack 11 | . 11 . Destroy Structure 26 | . 2 24 Lose Combat Pursuer 75 | . 30 45 Influence Decreases 598 | 30 413 155 Entered New Map 7 | . 4 3 Time Decay 531 | 30 399 102 Lost Part 60 | . 10 50 Squads Dispatched 3 | . 3 . Investigation 1 | . 1 . Extermination . | . . . Reinforcement 2 | . 2 . Assault . | . . . Garrison . | . . . Intercept . | . . . Searches Triggered . | . . . Construction Impeded . | . . . Haulers Reinforced . | . . . Active Scanning Responses . | . . . Cargo Convoy Interrupts . | . . . Stealth | -11 -10 -10 --------- Run | Yrd Mat Min Distress Signals 4 | . 4 . Communications Jammed . | . . . Distress Signals . | . . . Times Spotted 42 | . 29 13 Peak Tracking Total 13 | . 3 13 Tactical Retreats 3 | . 1 2 Traps | -11 -10 -10 ------- Run | Yrd Mat Min Traps Triggered 4 | . 4 . Indirectly . | . . . Trap Hack Attempts . | . . . Triggered . | . . . Disarmed . | . . . Reprogrammed . | . . . Reused 2 | . . 2 Traps Extracted . | . . . Installed 3 | . . 3 Triggered 2 | . . 2 Most Traps Carried 4 | . . 4 Machines | -11 -10 -10 ---------- Run | Yrd Mat Min Machines Disabled . | . . . Max in Single Turn . | . . . Machines Repaired . | . . . Machines Dismantled . | . . . Machines Sabotaged . | . . . Overloaded Fab Kills . | . . . Hacking | -11 -10 -10 --------- Run | Yrd Mat Min Machines Accessed 8 | . 8 . Terminals 6 | . 6 . Fabricators . | . . . Repair Stations 1 | . 1 . Recycling Units 1 | . 1 . Scanalyzers . | . . . Garrison Access . | . . . Total Hacks 21 | . 21 . Successful 13 | . 13 . Failed 8 | . 8 . Catastrophic 1 | . 1 . Database Lockouts . | . . . Manual 9 | . 9 . Terminals 15 | . 15 . Fabricators . | . . . Repair Stations 5 | . 5 . Recycling Units 1 | . 1 . Scanalyzers . | . . . Garrison Access . | . . . Terminal Hacks 6 | . 6 . Robot Analysis 2 | . 2 . Prototype ID Bank 1 | . 1 . Branch Access Points 1 | . 1 . Recall Reinforcements 1 | . 1 . Hauler Manifests 1 | . 1 . Fabricator Hacks . | . . . Repair Station Hacks 4 | . 4 . Scan Component 2 | . 2 . Repair 2 | . 2 . Recycling Unit Hacks 1 | . 1 . Report Inventory 1 | . 1 . Scanalyzer . | . . . Garrison Access Hacks . | . . . Unauthorized Hacks 2 | . 2 . Terminals 2 | . 2 . Botnet 2 | . 2 . Fabricators . | . . . Repair Stations . | . . . Recycling Units . | . . . Scanalyzers . | . . . Garrison Access . | . . . Data Cores Recovered . | . . . Used . | . . . Hacking Detections 5 | . 5 . Full Trace Events 1 | . 1 . Feedback Events . | . . . Feedback Blocked . | . . . Robot Schematics Acquired . | . . . Robots Built . | . . . Authchips . | . . . Time . | . . . Total Robot Build Rating . | . . . Part Schematics Acquired . | . . . Parts Built . | . . . Authchips . | . . . Time . | . . . Total Part Build Rating . | . . . Part Studies Acquired . | . . . Parts Repaired 2 | . 2 . Time 52 | . 52 . Parts Recycled . | . . . Recycled Matter . | . . . Retrieved Matter . | . . . Retrieved Components . | . . . Parts Scanalyzed . | . . . Part Schematics Acquired . | . . . Parts Damaged . | . . . Bothacking | -11 -10 -10 ------------ Run | Yrd Mat Min Used RIF Installer . | . . . Robots Hacked . | . . . Non-combat . | . . . Combat . | . . . Robot Hacks Applied . | . . . Relay Couplers Released . | . . . Fabnet Peak Effective % . | . . . Robots Rewired . | . . . Allies Hacked . | . . . Hacks Repelled . | . . . Allies | -11 -10 -10 -------- Run | Yrd Mat Min Total Allies . | . . . Largest Group . | . . . Highest-Rated Group . | . . . Highest-Rated Ally . | . . . Total Orders . | . . . Ally Attacks . | . . . Total Damage . | . . . Kills . | . . . Allies Corrupted . | . . . Allies Melted . | . . . Intel | -11 -10 -10 ------- Run | Yrd Mat Min Active Infowar (turns) 2293 | 62 1737 494 Seismic 2293 | 62 1737 494 Robot Analysis Total 2 | . 2 . Derelict Logs Recovered . | . . . Drone Launches . | . . . Drone Recoveries . | . . . Exploration | -11 -10 -10 ------------- Run | Yrd Mat Min Turns Passed 2535 | 217 1737 581 Spaces Moved 1205 | 101 813 291 Core 5 | 5 . . Treads 1200 | 96 813 291 Legs . | . . . Wheels . | . . . Hover . | . . . Flight . | . . . Fastest Speed 50 | 50 160 160 Average Speed 159 | 154 160 160 Slowest Speed 240 | 160 160 240 Overloaded Moves . | . . . Propulsion Burnouts . | . . . Robots Hopped . | . . . Potential Cave-ins . | . . . Cave-ins Triggered . | . . . Exploration Rate (%) 51 | 4 97 54 Regions Visited 2 Branch Regions 1 Pre-discovered Areas . | . . . Known Exits Taken 1 | . 1 . Unknown Exits Taken 1 | 1 . . Scrap Searched . | . . . Spaces Dug . | . . . Terrain Destroyed 35 | . . 35 Melee . | . . . Projectile . | . . . AOE 35 | . . 35 Terrain Rammed . | . . . Walls Destroyed . | . . . Machines Disabled . | . . . Actions | -11 -10 -10 --------- Run | Yrd Mat Min Total 1616 | 129 1119 368 Wait 231 | 1 201 29 Move 1203 | 100 812 291 Hop . | . . . Pick Up 28 | 6 16 6 Fast Attach 10 | 6 4 . Attach 8 | 1 . 7 Detach . | . . . Swap 7 | . 4 3 Drop 13 | . 10 3 Fire 108 | 15 68 25 Melee . | . . . Ram . | . . . Kick . | . . . Crush 5 | . 4 1 Escape Stasis . | . . . Rewire . | . . . Trap 3 | . . 3 Miscellaneous . | . . . Route ------- -11/Scrapyard -10/Materials (discovered 5 exits: [*Mat x3] / *Min / [*Sub]) -10/Mines History --------- Turn | Location | Event 11 | -11/Scrapyard | Discovered new exit (range 15) 218 | -11/Scrapyard | Entered Materials 314 | -10/Materials | Build established: Mutant 510 | -10/Materials | Discovered new exit (range 7) 834 | -10/Materials | Discovered new exit (range 16) 918 | -10/Materials | Derelicts attacked the area 1085 | -10/Materials | Discovered new exit (range 5) 1133 | -10/Materials | Repaired Lgt. Treads 1161 | -10/Materials | Repaired Lgt. Treads 1382 | -10/Materials | Identified exit to Mines 1541 | -10/Materials | Discovered new exit (range 14) 1955 | -10/Materials | Entered Mines 1985 | -10/Mines | Met a Derelict bent on vengeance 2021 | -10/Mines | Core integrity fell below 50% 2039 | -10/Mines | Assembled infested the area 2077 | -10/Mines | Core integrity fell below 20% 2087 | -10/Mines | Destroyed 8 combat bots 2091 | -10/Mines | Lost 6 parts (2n1u3w) 2272 | -10/Mines | Received a Rocket Launcher from a helpful Derelict 2491 | -10/Mines | Found a hidden stash of uninstalled traps 2536 | -10/Mines | Destroyed by D-53 Grenadier with Mini Grenade Launcher Last Messages --------------- 02272_ 0U-ZM6(g) slips back into the shadows. 02274_ Acquired Rocket Launcher. 02436_ System corrupted: Matter fused (-8). 02491_ A stash of uninstalled traps is collected here! 02494_ Acquired Proton Bomb Trap. 02502_ K-01 Serf collects debris. 02502_ Acquired Proton Bomb Trap. 02506_ K-01 Serf collects debris. 02506_ U-05 Engineer lays Concrete. 02507_ U-05 Engineer builds a Wall. 02509_ K-01 Serf collects debris. 02511_ Dropped Proton Bomb Trap. 02512_ U-05 Engineer lays Concrete. 02512_ Installed Proton Bomb Trap. 02513_ U-05 Engineer builds a Wall. 02514_ Dropped Proton Bomb Trap. 02515_ Installed Proton Bomb Trap. 02529_ Dropped Proton Bomb Trap. 02530_ Installed Proton Bomb Trap. Map ----- +----------------------------------------------------+ | ###### #?????????????????????????? | | * #?????????????????????????? | | = = #?????????????????????????? | | ###### # [ % ##????????????????????????? | | ##????# ### % #????????????????????????? | | ###?????# # ???????????????????????? | | ##???????# # ???????????????????????? | | #????????# % ##????????????????????????? | | ??######## # ##?????????????????????????? | | ??# % #?? # ####??????????????????????????? | | ??# """ #????##???????????????????????????????? | | ??# """ #?????????????????????????????????????? | | ??# """ #?????????????????????????????????????? | | ??# #????????????????####?????????????????? | | ??# #???????????????## ###???????????????? | | ??# #??????????###### ###??????????????? | | ??# #??????????# # #?#????????????? | | ??### #####????#???### ### ### ###### #?????? | | ????# #??##### ????# #### ???? | | ????# #?## ?????# ### ### ???? | | ##### #?# %#??????# ## ##^#####"######??????? | | #?# =##?????# # #?????#???????????? | | ##### ### #?????# d #?????????????????? | | ????# ## ##????# # #?????????????????? | | ????# ###??# # #?????????????????? | | ????# ##?# @ # #?????????????????? | | ????### ## %### # # #?????????????????? | | ??????# ##### # ##?????????????????? | | ??????# #???## #### ### ???????????????????? | | ??????# #????# #??######?? ???????????????????? | | ??????# #????# ##?????????? ???????????????????? | | ?###### #???# ##??????????? ???????????????????? | | ?# #??# #???????????? ???????????????????? | | ?# ######?# !#???????????? ???????????????????? | | ?# #?????# #???????????? ???????????????????? | | ?# #????# #????????????????????????????????? | | ?# #????# ????????????????????????????????? | | ?# #????## ### ????????????????????????????????? | | ?# #?????##??## ????????????????????????????????? | | ?# #??????????? ????????????????????????????????? | | ?# #??????????? ?????????????????????????????????? | | ?# #?????????????????????????????????????????????? | | ?# #?????????????????????????????????????????????? | | ?# #?????????????????????????????????????????????? | | ?# #?????????????????????????????????????????????? | | ?# ###????##?????????????????????????????????????? | | ## ##??# #?????????????????????????????????????? | | ### #?????????????????????????????????????? | | #?????????????????????????????????????? | | ### ##?????????????????????????????????????? | +----------------------------------------------------+ Best States ------------- Heat Dissipation 25 Energy Generation 10 Energy Capacity 250 Matter Stores 300 Matter Capacity 300 Sight Range 16 Terrain Scan Density 10 Evasion (%) 40 Recoil Reduction 2 Item Schematics ----------------- None Robot Schematics ------------------ None Fabricated ------------ Nothing Repaired ---------- Lgt. Treads | 37% | -10/Materials Lgt. Treads | 49% | -10/Materials Studied --------- None Alien Tech Used ----------------- None Achievements -------------- None Challenges ------------ None Game ------ Seed RegenerativeParticleMediator Manual? 0 Play Time 00:14:50 Cumulative 237.8 hours Start 2026.09.11 @ 10:32:07 End 2026.09.11 @ 10:43:54 Sessions 1 Manual Loads 0 Difficulty Rogue Special Mode None Game No. 294 Rogue 294 Adventurer 0 Explorer 0 Win Type - Total 3 Types 3/0/0/0/0/0/0/0/0/0 Lore% 75 Gallery% 55 Achievement% 45 Wizard Run 0 Options --------- Layout 1 ASCII 0 Keyboard 1 Movement Numpad Keybinds 0 Fullscreen 2 Font 24/Smallcaps Map View 50x35 Zoom Use 0% Tactical HUD 1 Map Filters NONE Filters NONE Steam 1 RUN: 5c6f6ed7-2b0e-4631-9b22-5db92e4cad13